bitfinex-derivatives/quotes_BTCF0:USTF0_20250324
["timestamp","ask_amount","ask_price","bid_price","bid_amount"]
[1742819227565,0.43687079,87436.0,87435.0,0.89791463]
[1742819231069,0.43687079,87436.0,87435.0,0.62791463]
[1742819231368,0.43687079,87436.0,87435.0,0.85791463]
[1742819232168,0.79767079,87436.0,87435.0,0.21485773]
[1742819232360,0.89837079,87436.0,87435.0,0.21485773]
[1742819232556,1.04173079,87436.0,87435.0,0.21485773]
[1742819233468,1.04173079,87436.0,87435.0,0.32921463]
[1742819233658,0.1143896,87410.0,87409.0,0.20548883]
[1742819233863,0.4751896,87410.0,87409.0,0.72548883]
[1742819234059,0.11602961,87410.0,87409.0,0.72548883]
[1742819234258,0.11602961,87410.0,87409.0,0.48548883]
[1742819234471,0.61824727,87410.0,87409.0,0.48548883]
[1742819234772,0.45545114,87410.0,87409.0,0.59987973]
[1742819235169,0.47305419,87410.0,87409.0,0.48548883]
[1742819235364,0.48020725,87410.0,87409.0,0.20548883]
[1742819235558,0.48049567,87410.0,87409.0,0.20548883]
[1742819235763,0.47949567,87410.0,87409.0,0.20548883]
[1742819236464,0.1143961,87405.0,87404.0,0.2731886]
[1742819236665,0.15052523,87405.0,87404.0,0.3531886]
[1742819236876,0.15052523,87405.0,87404.0,0.08]
[1742819237062,0.26492927,87405.0,87404.0,0.08]
[1742819237262,0.23044015,87405.0,87404.0,0.08]
[1742819237471,0.29859345,87405.0,87404.0,0.08]
[1742819237668,0.29859345,87405.0,87404.0,0.1143975]
[1742819237866,0.1144001,87402.0,87401.0,0.2163002]
[1742819238067,0.15093291,87402.0,87401.0,0.3763002]
[1742819238262,0.15093291,87402.0,87401.0,0.16]
[1742819238571,0.26534742,87402.0,87401.0,0.16]
[1742819238772,0.26534742,87402.0,87401.0,0.2744014]
[1742819238973,0.26534742,87402.0,87401.0,0.16]
[1742819239171,0.29860792,87402.0,87401.0,0.16]
[1742819239965,0.48980792,87402.0,87401.0,0.16]
[1742819240273,0.49280792,87402.0,87401.0,0.16]
[1742819240468,0.49280792,87402.0,87401.0,0.2744014]
[1742819240672,0.49280792,87402.0,87401.0,0.3708014]
[1742819240673,0.54843611,87402.0,87401.0,0.3708014]
[1742819241074,0.54843611,87402.0,87401.0,0.4646014]
[1742819241276,0.55043611,87402.0,87401.0,0.4646014]
[1742819241880,0.43603601,87402.0,87401.0,0.4646014]
[1742819242065,0.45313611,87402.0,87401.0,0.5746014]
[1742819242361,0.45313611,87402.0,87401.0,0.6673014]
[1742819242768,0.1144014,87401.0,87400.0,0.105]
[1742819242993,0.1144105,87394.0,87386.0,0.13]
[1742819243175,0.1144105,87394.0,87379.0,0.0979]
[1742819243176,0.51174331,87394.0,87393.0,0.08295]
[1742819243475,0.61900434,87394.0,87393.0,0.08295]
[1742819243678,0.65226484,87394.0,87393.0,0.05719229]
[1742819243881,0.1144132,87392.0,87385.0,0.0572108]
[1742819244079,0.14379253,87392.0,87391.0,0.26045771]
[1742819244268,0.14315804,87392.0,87391.0,0.37487221]
[1742819244670,0.25758564,87392.0,87391.0,0.37487221]
[1742819244971,0.24716071,87392.0,87391.0,0.26045771]
[1742819245176,0.28248277,87392.0,87391.0,0.26045771]
[1742819245377,0.25996957,87392.0,87391.0,0.37487221]
[1742819245675,0.37438277,87392.0,87391.0,0.37487221]
[1742819246176,0.25996957,87392.0,87391.0,0.56507221]
[1742819246380,0.35836957,87392.0,87391.0,0.66407221]
[1742819246677,0.47993747,87392.0,87391.0,0.66407221]
[1742819246876,0.47993747,87392.0,87391.0,0.26045771]
[1742819247081,0.47993747,87392.0,87378.0,0.36375]
[1742819247082,0.0572144,87381.0,87378.0,0.36375]
[1742819247268,0.1144302,87379.0,87378.0,0.00295]
[1742819247466,0.32808524,87379.0,87378.0,0.00295]
[1742819247868,0.44252855,87379.0,87378.0,0.00295]
[1742819248382,0.44252855,87379.0,87363.0,0.420975]
[1742819248383,0.1144341,87376.0,87363.0,0.36375]
[1742819248577,0.50276914,87376.0,87366.0,0.1144467]
[1742819248770,0.50276914,87376.0,87365.0,0.1911]
[1742819249166,0.64332068,87376.0,87365.0,0.1911]
[1742819249469,0.65047714,87376.0,87365.0,0.2483241]
[1742819249671,0.65047714,87376.0,87365.0,0.3055476]
[1742819249883,0.67292885,87376.0,87365.0,0.0933]
[1742819250176,0.1144472,87366.0,87365.0,0.0933]
[1742819250367,0.1491787,87366.0,87365.0,0.12]
[1742819250881,0.48433162,87366.0,87365.0,0.12]
[1742819251071,0.68143162,87366.0,87365.0,0.12]
[1742819251472,0.67427504,87366.0,87365.0,0.12]
[1742819251883,0.48875504,87366.0,87365.0,0.12]
[1742819252176,0.48875504,87366.0,87365.0,0.2344485]
[1742819252177,0.17720784,87366.0,87365.0,0.2344485]
[1742819252379,0.02142784,87366.0,87365.0,0.4293485]
[1742819252568,0.15347333,87366.0,87365.0,0.4293485]
[1742819253182,0.13204549,87366.0,87365.0,0.4293485]
[1742819253381,0.00017166,87374.0,87373.0,0.11401145]
[1742819253580,0.00181166,87374.0,87373.0,0.96481145]
[1742819253877,0.00017166,87374.0,87373.0,0.96481145]
[1742819254071,0.11463331,87374.0,87373.0,0.96481145]
[1742819254787,0.11563331,87374.0,87373.0,0.96481145]
[1742819254984,0.11823331,87374.0,87373.0,0.96481145]
[1742819255488,0.11663331,87374.0,87373.0,1.05981145]
[1742819255785,0.10126971,87386.0,87385.0,0.1144223]
[1742819255980,0.10126971,87386.0,87385.0,0.3944223]
[1742819255981,0.21729071,87386.0,87385.0,0.3944223]
[1742819256172,0.10286971,87386.0,87385.0,0.1144223]
[1742819256375,0.10286971,87386.0,87385.0,0.6044223]
[1742819256582,0.10126971,87386.0,87385.0,0.8026223]
[1742819256778,0.0004,87400.0,87390.0,0.1144158]
[1742819257086,0.0004,87400.0,87393.0,0.1144119]
[1742819257087,0.00017166,87394.0,87393.0,0.1144119]
[1742819257268,0.00177166,87394.0,87393.0,0.8352119]
[1742819257473,0.00185166,87394.0,87393.0,0.8352119]
[1742819258084,0.11458216,87394.0,87393.0,0.8352119]
[1742819258386,0.00377166,87394.0,87393.0,0.8352119]
[1742819258568,0.00217166,87394.0,87393.0,0.8352119]
[1742819258767,0.00517166,87394.0,87393.0,0.8352119]
[1742819259484,0.00317166,87394.0,87393.0,0.8362119]
[1742819259875,0.11758216,87394.0,87393.0,0.9323119]
[1742819260070,0.11918216,87394.0,87393.0,0.9323119]
[1742819260286,0.11918216,87394.0,87393.0,0.8179]
[1742819260583,0.11626216,87394.0,87393.0,0.8179]
[1742819260794,0.43830542,87394.0,87393.0,0.8179]
[1742819260972,0.43830542,87394.0,87393.0,0.8169]
[1742819261174,0.42068714,87394.0,87393.0,0.4561]
[1742819262378,0.42068714,87394.0,87393.0,0.36]
[1742819262775,0.42641073,87394.0,87393.0,0.36]
[1742819262978,0.78721073,87394.0,87393.0,0.36]
[1742819263585,0.80274832,87394.0,87393.0,0.36]
[1742819263786,0.1144197,87387.0,87386.0,0.1011]
[1742819263989,0.66502329,87387.0,87386.0,0.1011]
[1742819264490,0.77944889,87387.0,87386.0,0.1011]
[1742819264789,0.0572121,87384.0,87380.0,0.093]
[1742819265089,0.1144276,87381.0,87380.0,0.203]
[1742819265279,0.12175186,87381.0,87380.0,0.203]
[1742819265593,0.1160276,87381.0,87380.0,0.203]
[1742819265791,0.14693878,87381.0,87380.0,0.203]
[1742819266093,0.26138078,87381.0,87380.0,0.203]
[1742819266683,0.26138078,87381.0,87380.0,0.093]
[1742819267291,0.45378078,87381.0,87380.0,0.093]
[1742819267795,0.1144354,87375.0,87374.0,0.1002]
[1742819267989,0.1160354,87375.0,87374.0,0.2302]
[1742819268292,0.14694702,87375.0,87374.0,0.2302]
[1742819268490,0.35638902,87375.0,87374.0,0.2302]
[1742819268998,0.71718902,87375.0,87374.0,0.2302]
[1742819269287,0.81258902,87375.0,87374.0,0.2302]
[1742819270187,0.81258923,87375.0,87374.0,0.2302]
[1742819270582,0.90618923,87375.0,87374.0,0.2302]
[1742819270782,0.90718923,87375.0,87374.0,0.2302]
[1742819270981,1.13228227,87375.0,87374.0,0.2302]
[1742819271182,1.13228227,87375.0,87374.0,0.13]
[1742819271589,1.13228227,87375.0,87363.0,0.00295]
[1742819271590,0.1144498,87364.0,87363.0,0.00295]
[1742819271789,0.1161298,87364.0,87363.0,0.15295]
[1742819272180,0.24022897,87364.0,87363.0,0.15295]
[1742819272694,0.33632897,87364.0,87363.0,0.15295]
[1742819272894,0.33632897,87364.0,87363.0,0.15395]
[1742819275188,0.33632897,87364.0,87363.0,0.2684011]
[1742819275795,0.33632897,87364.0,87363.0,0.15395]
[1742819275995,0.34205452,87364.0,87363.0,0.15395]
[1742819276400,0.43915452,87364.0,87363.0,0.15395]
[1742819277091,0.44015452,87364.0,87363.0,0.15395]
[1742819277291,0.44015452,87364.0,87363.0,0.00395]
[1742819278189,0.44015452,87364.0,87363.0,0.00295]
[1742819278990,0.44115452,87364.0,87363.0,0.15295]
[1742819279190,0.24222897,87364.0,87363.0,0.25295]
[1742819279398,0.24222897,87364.0,87363.0,0.3674011]
[1742819279593,0.24222897,87364.0,87363.0,0.20255]
[1742819279794,0.44162897,87364.0,87363.0,0.10005]
[1742819280199,0.44162897,87364.0,87363.0,0.00295]
[1742819280598,0.49729013,87364.0,87363.0,0.00295]
[1742819281206,0.49729013,87364.0,87363.0,0.1174011]
[1742819281700,0.49729013,87364.0,87363.0,0.20105]
[1742819282497,0.29789013,87364.0,87363.0,0.20105]
[1742819283103,0.49439013,87364.0,87363.0,0.20105]
[1742819283294,0.49439013,87364.0,87363.0,0.3155011]
[1742819283494,0.49439013,87364.0,87363.0,0.20105]
[1742819283707,0.49439013,87364.0,87363.0,0.00295]
[1742819283902,0.59289013,87364.0,87363.0,0.00295]
[1742819284994,0.53722897,87364.0,87363.0,0.00295]
[1742819285406,0.54295475,87364.0,87363.0,0.00295]
[1742819285798,0.1144551,87360.0,87359.0,0.00045788]
[1742819285996,0.4768551,87360.0,87359.0,0.00045788]
[1742819286199,0.67840441,87360.0,87359.0,0.00045788]
[1742819286597,0.79286868,87360.0,87359.0,0.00045788]
[1742819286899,0.12571358,87360.0,87359.0,0.34491428]
[1742819287290,0.12411358,87360.0,87359.0,0.37491428]
[1742819287508,0.12411358,87360.0,87359.0,0.91361428]
[1742819288024,0.12411358,87360.0,87359.0,0.40361428]
[1742819288196,0.12571358,87360.0,87359.0,0.40361428]
[1742819288398,0.12571358,87360.0,87359.0,0.64361428]
[1742819288596,0.18137624,87360.0,87359.0,0.64361428]
[1742819290205,0.20349698,87364.0,87359.0,0.83638598]
[1742819290406,0.20349698,87364.0,87363.0,0.4752511]
[1742819290591,0.20349698,87364.0,87363.0,0.7158511]
[1742819290797,0.20349698,87364.0,87363.0,0.9134511]
[1742819291009,0.20349698,87364.0,87363.0,0.92720548]
[1742819291805,0.20449698,87364.0,87363.0,0.92720548]
[1742819292501,0.20565698,87364.0,87363.0,0.92720548]
[1742819292703,0.05739186,87372.0,87371.0,0.1144407]
[1742819292704,0.00017166,87372.0,87371.0,0.1144407]
[1742819293010,0.11461106,87372.0,87371.0,0.6436407]
[1742819293206,0.11537106,87372.0,87371.0,0.6436407]
[1742819293405,0.22983533,87372.0,87371.0,0.6436407]
[1742819294111,0.23283533,87372.0,87371.0,0.6436407]
[1742819294310,0.11839593,87372.0,87371.0,0.6436407]
[1742819294805,0.0141428,87391.0,87371.0,0.6436407]
[1742819294806,0.0572059,87393.0,87384.0,0.1144236]
[1742819295024,0.00068001,87385.0,87384.0,0.3451036]
[1742819295197,0.00068001,87385.0,87384.0,0.6379036]
[1742819295398,8e-05,87385.0,87384.0,0.6379036]
[1742819295596,0.1150538,87385.0,87384.0,0.6379036]
[1742819296000,0.1200538,87385.0,87384.0,0.6379036]
[1742819296301,0.1250538,87385.0,87384.0,0.6379036]
[1742819297601,0.1250538,87385.0,87384.0,0.8779036]
[1742819298609,0.1250538,87385.0,87384.0,0.6379036]
[1742819299212,0.1250538,87385.0,87384.0,0.8052236]
[1742819299513,0.2394761,87385.0,87384.0,0.8052236]
[1742819300708,0.1250538,87385.0,87384.0,0.8052236]
[1742819300913,0.2394761,87385.0,87384.0,0.19058]
[1742819301304,0.1144328,87378.0,87374.0,0.3608]
[1742819301599,0.2116328,87377.0,87376.0,0.23520576]
[1742819301802,0.2122728,87377.0,87376.0,0.23520576]
[1742819302008,0.32671939,87377.0,87376.0,0.23520576]
[1742819302410,0.32671939,87377.0,87376.0,0.12077166]
[1742819302918,0.33985534,87377.0,87376.0,0.12077166]
[1742819303105,0.43285534,87377.0,87376.0,0.12077166]
[1742819303409,0.43285534,87377.0,87376.0,0.01077166]
[1742819303610,0.43685534,87377.0,87376.0,0.01077166]
[1742819303913,0.43685534,87377.0,87376.0,0.12520576]
[1742819304215,0.43680572,87377.0,87376.0,0.12520576]
[1742819304701,0.43680572,87377.0,87376.0,0.22220576]
[1742819305813,0.43670572,87377.0,87376.0,0.22220576]
[1742819306805,0.43670572,87377.0,87376.0,0.10777166]
[1742819307011,0.43670572,87377.0,87376.0,0.22220576]
[1742819307212,0.43670572,87377.0,87376.0,0.10777166]
[1742819307607,0.43670572,87377.0,87376.0,0.22220576]
[1742819308501,0.43670572,87377.0,87376.0,0.10777166]
[1742819309513,0.43670572,87377.0,87376.0,0.01077166]
[1742819309904,0.43670572,87377.0,87376.0,0.01017166]
[1742819309905,0.44588197,87377.0,87376.0,0.01017166]
[1742819310416,0.45160731,87377.0,87376.0,0.01017166]
[1742819310610,0.46736846,87377.0,87376.0,0.01017166]
[1742819311117,0.46736846,87377.0,87376.0,0.01081166]
[1742819311318,0.46736846,87377.0,87376.0,0.01017166]
[1742819311519,0.46736846,87377.0,87376.0,0.01077166]
[1742819311718,0.46736846,87377.0,87376.0,0.01017166]
[1742819313114,0.52301988,87377.0,87376.0,0.01017166]
[1742819315123,0.52301988,87377.0,87376.0,0.01077166]
[1742819316813,0.53821394,87377.0,87376.0,0.01077166]
[1742819317212,0.53821411,87377.0,87376.0,0.01077166]
[1742819317416,0.53821411,87377.0,87376.0,0.01017166]
[1742819317616,0.68019055,87377.0,87376.0,0.01017166]
[1742819318220,0.68019056,87377.0,87376.0,0.01017166]
[1742819319710,0.68019056,87377.0,87372.0,0.1027]
[1742819319711,0.114438,87373.0,87372.0,0.0871093]
[1742819319921,0.14513384,87373.0,87372.0,0.2571093]
[1742819320221,0.42383453,87373.0,87372.0,0.1706]
[1742819320427,0.58087771,87373.0,87372.0,0.1706]
[1742819320626,0.58087771,87373.0,87372.0,0.17]
[1742819321024,0.56317887,87373.0,87372.0,0.17]
[1742819321719,0.57190385,87373.0,87372.0,0.1706]
[1742819322019,0.55391947,87373.0,87372.0,0.1706]
[1742819322219,0.55391947,87373.0,87372.0,0.17]
[1742819322620,0.60957089,87373.0,87372.0,0.17]
[1742819323025,0.60957089,87373.0,87372.0,0.17068]
[1742819323818,0.60957089,87373.0,87372.0,0.17]
[1742819324133,0.60957089,87373.0,87372.0,0.1706]
[1742819324628,0.5284681,87373.0,87372.0,0.1706]
[1742819324822,0.51487089,87373.0,87372.0,0.1706]
[1742819325724,0.52059587,87373.0,87372.0,0.1706]
[1742819325919,0.52034436,87373.0,87372.0,0.1706]
[1742819326522,0.42564436,87373.0,87372.0,0.2850394]
[1742819326719,0.41991938,87373.0,87372.0,0.2850394]
[1742819326915,0.41063377,87373.0,87372.0,0.1706]
[1742819327119,0.41063377,87373.0,87372.0,0.2850394]
[1742819327418,0.41063377,87373.0,87372.0,0.3852394]
[1742819328414,0.4163587,87373.0,87372.0,0.3852394]
[1742819328625,0.4163587,87373.0,87372.0,0.4788394]
[1742819331135,0.62023371,87373.0,87372.0,0.4788394]
[1742819332137,0.60447256,87373.0,87372.0,0.4788394]
[1742819334224,0.50987256,87373.0,87372.0,0.4788394]
[1742819334430,0.20959994,87373.0,87372.0,0.4788394]
[1742819334741,0.0572092,87389.0,87388.0,0.1716249]
[1742819335248,0.1144145,87391.0,87390.0,0.1716236]
[1742819335539,0.1144145,87391.0,87390.0,0.0572078]
[1742819335736,0.3050145,87391.0,87390.0,0.2565078]
[1742819335939,0.78024341,87391.0,87390.0,0.2565078]
[1742819337842,0.78524341,87391.0,87390.0,0.2565078]
[1742819338540,0.79024341,87391.0,87390.0,0.2575078]
[1742819338937,0.92281081,87391.0,87390.0,0.2575078]
[1742819340651,0.92281081,87391.0,87390.0,0.2003]
[1742819340852,0.92341082,87391.0,87390.0,0.20118]
[1742819341050,0.92341082,87391.0,87390.0,0.2003]
[1742819341251,0.92341082,87391.0,87390.0,0.2011]
[1742819341441,0.92341082,87391.0,87390.0,0.2003]
[1742819341743,0.92341082,87391.0,87390.0,0.20114]
[1742819342341,0.92341082,87391.0,87390.0,0.2003]
[1742819342636,0.81472035,87391.0,87360.0,0.06587378]
[1742819342939,0.1144328,87377.0,87376.0,0.08068]
[1742819343140,0.12087758,87377.0,87376.0,0.08]
[1742819343337,0.41937758,87377.0,87376.0,0.0806]
[1742819343542,0.41937758,87377.0,87376.0,0.08]
[1742819343732,0.53380649,87377.0,87376.0,0.0806]
[1742819343932,0.53380649,87377.0,87376.0,0.2755]
[1742819344231,0.53680649,87377.0,87376.0,0.2755]
[1742819345039,0.53680667,87377.0,87376.0,0.2755]
[1742819345235,0.53680667,87377.0,87376.0,0.2749]
[1742819345438,0.53680667,87377.0,87376.0,0.2755]
[1742819345834,0.5508764,87377.0,87376.0,0.2755]
[1742819346029,0.5548764,87377.0,87376.0,0.2755]
[1742819346746,0.1144511,87363.0,87359.0,0.00045788]
[1742819346935,0.1144551,87360.0,87359.0,0.00105788]
[1742819347244,0.1144551,87360.0,87359.0,0.00045788]
[1742819347245,0.12984894,87360.0,87359.0,0.00045788]
[1742819347444,0.43549618,87360.0,87359.0,0.00045788]
[1742819347640,0.43549618,87360.0,87359.0,0.09045788]
[1742819348248,0.44957554,87360.0,87359.0,0.09109788]
[1742819348940,0.43549618,87360.0,87359.0,0.09109788]
[1742819349349,0.58701618,87360.0,87359.0,0.09109788]
[1742819349743,0.60071689,87360.0,87359.0,0.09109788]
[1742819349944,0.1144695,87349.0,87348.0,0.00295]
[1742819350140,0.63307492,87349.0,87348.0,0.00355]
[1742819350652,0.74754443,87349.0,87348.0,0.00355]
[1742819350837,0.94937406,87349.0,87348.0,0.00355]
[1742819351233,0.94937406,87349.0,87348.0,0.00455]
[1742819351445,0.94364743,87349.0,87348.0,0.00555]
[1742819352150,0.94364743,87349.0,87348.0,0.19935]
[1742819352750,0.94364743,87349.0,87348.0,0.19875]
[1742819353845,0.79220743,87349.0,87348.0,0.00495]
[1742819354047,0.94236743,87349.0,87348.0,0.00495]
[1742819355856,0.99803621,87349.0,87348.0,0.00495]
[1742819357241,0.99803621,87349.0,87335.0,0.1891]
[1742819357242,0.1144865,87336.0,87335.0,0.1891]
[1742819357442,0.4759265,87336.0,87335.0,0.1897]
[1742819357848,0.78262747,87336.0,87335.0,0.1897]
[1742819358667,0.79165589,87336.0,87335.0,0.1937]
[1742819358842,0.67716939,87336.0,87335.0,0.3081878]
[1742819359043,0.48496939,87336.0,87335.0,0.5581878]
[1742819359254,0.12416939,87336.0,87335.0,0.5581878]
[1742819359457,0.23865589,87336.0,87335.0,0.5581878]
[1742819360355,0.23865589,87336.0,87335.0,0.1937]
[1742819360550,0.43785589,87336.0,87335.0,0.1937]
[1742819360751,0.23865589,87336.0,87335.0,0.3081878]
[1742819361344,0.12416939,87336.0,87335.0,0.5581878]
[1742819363452,0.12406939,87336.0,87335.0,0.5581878]
[1742819364055,0.01788353,87336.0,87335.0,0.7881878]
[1742819364251,0.98008,87365.0,87348.0,0.1144708]
[1742819364446,0.20418702,87349.0,87348.0,0.6244708]
[1742819364653,1.0945293,87365.0,87357.0,0.114459]
[1742819364850,0.01621576,87358.0,87357.0,0.355379]
[1742819365050,0.01525575,87358.0,87357.0,0.547779]
[1742819365455,0.33091314,87367.0,87366.0,0.1144472]
[1742819365456,0.23741314,87367.0,87366.0,0.1144472]
[1742819365656,0.23833314,87367.0,87366.0,0.3453672]
[1742819365955,0.35277904,87367.0,87366.0,0.3453672]
[1742819366148,0.46723938,87367.0,87366.0,0.5388672]
[1742819366348,0.22982624,87367.0,87366.0,0.5388672]
[1742819367057,0.11538034,87367.0,87366.0,0.5388672]
[1742819367250,0.11446034,87367.0,87366.0,0.5388672]
[1742819367452,0.11538034,87367.0,87366.0,0.5388672]
[1742819367648,0.22958624,87367.0,87366.0,0.3088672]
[1742819368146,0.23958624,87367.0,87366.0,0.3088672]
[1742819369560,0.12514034,87367.0,87366.0,0.5488672]
[1742819369864,0.12446034,87367.0,87366.0,0.5488672]
[1742819370063,0.12446034,87367.0,87366.0,0.8188672]
[1742819370258,0.00048,87368.0,87367.0,0.1144459]
[1742819370579,0.0004,87368.0,87367.0,0.5753659]
[1742819370769,0.0004,87368.0,87367.0,0.7739659]
[1742819371064,0.11486034,87368.0,87367.0,0.5439659]
[1742819371266,0.11578034,87368.0,87367.0,0.5439659]
[1742819371464,0.12078034,87368.0,87367.0,0.5439659]
[1742819371670,0.12578034,87368.0,87367.0,0.3139659]
[1742819372160,0.12486034,87368.0,87367.0,0.3139659]
[1742819372673,0.12578034,87368.0,87367.0,0.3139659]
[1742819372963,0.01132,87368.0,87367.0,0.5739659]
[1742819373158,0.00017166,87375.0,87374.0,0.1144367]
[1742819373351,0.00017166,87375.0,87374.0,0.3553567]
[1742819373549,0.3612,87384.0,87383.0,0.1144249]
[1742819373757,0.3612,87384.0,87383.0,0.1153449]
[1742819373758,0.36792433,87384.0,87383.0,0.1153449]
[1742819374152,0.3622,87384.0,87383.0,0.1153449]
[1742819374357,0.11583808,87384.0,87383.0,0.3193449]
[1742819374951,0.23026168,87384.0,87383.0,0.3193449]
[1742819375462,0.32736168,87384.0,87383.0,0.3193449]
[1742819376055,0.21593808,87384.0,87383.0,0.3193449]
[1742819376255,0.33959187,87384.0,87383.0,0.1153449]
[1742819376459,0.53739187,87384.0,87383.0,0.00092]
[1742819376657,0.1144276,87381.0,87380.0,0.1144285]
[1742819376861,0.12457779,87381.0,87380.0,0.1153485]
[1742819377066,0.14977092,87381.0,87380.0,0.1153485]
[1742819377266,0.14987607,87381.0,87380.0,0.1153485]
[1742819377454,0.26431415,87381.0,87380.0,0.1153485]
[1742819377659,0.62511415,87381.0,87380.0,0.00092]
[1742819378057,0.62911415,87381.0,87380.0,0.20182]
[1742819378254,0.62911562,87381.0,87380.0,0.20182]
[1742819378752,0.62911562,87381.0,87380.0,0.2009]
[1742819378954,0.62911562,87381.0,87380.0,0.3163289]
[1742819379155,0.62911562,87381.0,87380.0,0.2019]
[1742819379369,0.62911562,87381.0,87380.0,0.3163289]
[1742819379566,0.82091562,87381.0,87380.0,0.2019]
[1742819380264,0.82088946,87381.0,87380.0,0.2019]
[1742819381568,0.82088946,87381.0,87380.0,0.3163289]
[1742819381759,0.8765398,87381.0,87380.0,0.3163289]
[1742819382568,0.8765398,87381.0,87380.0,0.2019]
[1742819383064,0.8765398,87381.0,87380.0,0.3163289]
[1742819383866,0.8765398,87381.0,87380.0,0.2019]
[1742819384169,0.87649543,87381.0,87380.0,0.2019]
[1742819384367,0.87649543,87381.0,87380.0,0.3163289]
[1742819385273,0.87649543,87381.0,87380.0,0.2019]
[1742819385471,0.82084509,87381.0,87380.0,0.2019]
[1742819385774,0.82084509,87381.0,87380.0,0.2009]
[1742819385973,0.82084509,87381.0,87380.0,0.20182]
[1742819386174,0.82084286,87381.0,87380.0,0.20182]
[1742819386776,0.82656764,87381.0,87380.0,0.20182]
[1742819388680,0.82656764,87381.0,87380.0,0.2009]
[1742819388883,0.82656764,87381.0,87380.0,0.20182]
[1742819389270,0.84172743,87381.0,87380.0,0.20182]
[1742819390177,0.84172762,87381.0,87380.0,0.20182]
[1742819390375,0.82656783,87381.0,87380.0,0.20182]
[1742819391270,0.82656783,87381.0,87380.0,0.3162489]
[1742819392284,0.82656783,87381.0,87380.0,0.20182]
[1742819392486,0.88221979,87381.0,87380.0,0.3162489]
[1742819392873,0.88221979,87381.0,87380.0,0.20182]
[1742819393183,0.88221979,87381.0,87380.0,0.3162489]
[1742819393384,0.88221979,87381.0,87380.0,0.20182]
[1742819395283,0.88221979,87381.0,87380.0,0.3162489]
[1742819395781,0.20946722,87381.0,87380.0,0.58048717]
[1742819395982,0.09482629,87381.0,87380.0,0.5891562]
[1742819396187,0.22755476,87381.0,87380.0,0.5891562]
[1742819396485,0.21849356,87381.0,87380.0,0.5891562]
[1742819397585,0.08576509,87381.0,87380.0,0.5891562]
[1742819397890,0.02919313,87381.0,87380.0,0.5891562]
[1742819398481,0.01368966,87381.0,87380.0,0.5891562]
[1742819399390,0.02279985,87381.0,87380.0,0.5891562]
[1742819400079,0.02279987,87381.0,87380.0,0.5891562]
[1742819400380,0.0381595,87381.0,87380.0,0.5891562]
[1742819400992,0.00017166,87392.0,87391.0,0.1144145]
[1742819401182,0.00077167,87392.0,87391.0,0.6725345]
[1742819401379,0.00739539,87392.0,87391.0,0.6725345]
[1742819401579,0.00679538,87392.0,87391.0,0.6725345]
[1742819401785,0.12123738,87392.0,87391.0,0.5669345]
[1742819402391,0.12323738,87392.0,87391.0,0.5669345]
[1742819402592,0.12523738,87392.0,87391.0,0.5669345]
[1742819403187,0.12523738,87392.0,87391.0,0.58061234]
[1742819403591,0.33113738,87392.0,87391.0,0.58061234]
[1742819403785,0.00845964,87409.0,87391.0,0.58061234]
[1742819403786,0.3608,87406.0,87399.0,0.114404]
[1742819403982,0.27262975,87416.0,87402.0,0.0571994]
[1742819404184,0.27262975,87416.0,87406.0,0.4751948]
[1742819404493,0.1143863,87413.0,87406.0,0.6183548]
[1742819404682,0.2059,87413.0,87406.0,0.6183548]
[1742819404889,8e-05,87410.0,87406.0,0.6183548]
[1742819405097,0.46700249,87407.0,87406.0,0.1161148]
[1742819405390,0.22880146,87407.0,87406.0,0.1161148]
[1742819405596,0.11440796,87407.0,87406.0,0.1161148]
[1742819405984,0.1143935,87407.0,87406.0,0.1733121]
[1742819406186,0.1143935,87407.0,87406.0,0.00172]
[1742819406388,0.1143975,87404.0,87403.0,0.2196985]
[1742819406586,0.1143975,87404.0,87403.0,0.2213385]
[1742819406987,0.22880546,87404.0,87403.0,0.2213385]
[1742819407786,0.11440796,87404.0,87403.0,0.2213385]
[1742819408188,0.1143974,87405.0,87404.0,0.1143975]
[1742819408386,0.2163974,87405.0,87404.0,0.2140375]
[1742819408686,0.3218974,87405.0,87404.0,0.2140375]
[1742819408886,0.43630929,87405.0,87404.0,0.2140375]
[1742819409293,0.32191189,87405.0,87404.0,0.2140375]
[1742819410200,0.43630799,87405.0,87404.0,0.2140375]
[1742819410806,0.21991189,87405.0,87404.0,0.2140375]
[1742819411096,0.11441189,87405.0,87404.0,0.4640375]
[1742819411495,0.1143958,87406.0,87405.0,0.1143961]
[1742819411695,0.34120952,87408.0,87407.0,0.1143935]
[1742819411889,0.34120952,87408.0,87407.0,0.1160335]
[1742819412091,0.28402637,87408.0,87407.0,0.7793335]
[1742819412594,0.16961972,87408.0,87407.0,0.7793335]
[1742819413100,0.00017166,87415.0,87413.0,0.1143857]
[1742819413300,0.00017166,87415.0,87413.0,0.3460257]
[1742819413482,0.00017166,87415.0,87413.0,0.6483257]
[1742819413687,0.00017166,87415.0,87414.0,0.1143844]
[1742819413887,0.00017166,87415.0,87414.0,0.3461044]
[1742819414087,0.11456915,87415.0,87414.0,0.5494044]
[1742819414301,0.11456915,87415.0,87414.0,0.56251711]
[1742819414504,0.11456915,87415.0,87414.0,0.5494044]
[1742819414692,0.12351176,87415.0,87414.0,0.5494044]
[1742819415494,0.00911427,87415.0,87414.0,0.5494044]
[1742819416996,0.00017166,87415.0,87414.0,0.56219814]
[1742819418486,0.00915692,87415.0,87414.0,0.56219814]
[1742819418692,0.00915692,87415.0,87414.0,0.81219814]
[1742819419787,0.00898526,87415.0,87414.0,0.81219814]
[1742819419987,0.4179817,87430.0,87414.0,0.81219814]
[1742819419988,0.1067,87427.0,87422.0,0.1143739]
[1742819420188,0.2062,87431.0,87428.0,0.1143661]
[1742819420391,0.0969,87438.0,87428.0,0.3660061]
[1742819420392,0.1143558,87436.0,87428.0,0.3660061]
[1742819420595,0.1143581,87435.0,87428.0,0.5728061]
[1742819420792,0.0571779,87436.0,87428.0,0.5728061]
[1742819420992,0.1069,87434.0,87428.0,0.5728061]
[1742819421198,0.1069,87431.0,87428.0,0.5728061]
[1742819421398,0.16969972,87430.0,87429.0,0.1143647]
[1742819421599,0.16969972,87430.0,87429.0,0.3760047]
[1742819421800,0.28407889,87430.0,87429.0,0.5842047]
[1742819422394,0.28407889,87430.0,87429.0,0.3242047]
[1742819423121,0.39007889,87430.0,87429.0,0.3242047]
[1742819423697,0.49697889,87430.0,87429.0,0.3242047]
[1742819426603,0.32735917,87430.0,87429.0,0.3242047]
[1742819427805,0.32735917,87430.0,87429.0,0.5742047]
[1742819429304,0.21298,87430.0,87429.0,0.5742047]
[1742819429610,0.0004,87432.0,87431.0,0.1143621]
[1742819429811,0.0004,87432.0,87431.0,0.7168021]
[1742819429812,0.00048,87432.0,87431.0,0.7168021]
[1742819430001,0.00048,87432.0,87431.0,0.9219021]
[1742819430509,0.0004,87432.0,87431.0,0.9219021]